bitfinex/quotes_SOLUSD_20250508
["timestamp","ask_amount","ask_price","bid_price","bid_amount"]
[1746720674794,136.4,160.42,160.34,32.236634]
[1746720674981,36.2554147,160.39,160.34,68.4920487]
[1746720675189,36.2554147,160.4,160.35,36.2554147]
[1746720675383,36.2554147,160.39,160.35,36.2554147]
[1746720675579,36.2554147,160.39,160.34,32.236634]
[1746720675785,36.2554147,160.38,160.34,32.236634]
[1746720675996,36.2554147,160.38,160.34,68.4920487]
[1746720676176,36.2554147,160.38,160.34,26.0]
[1746720676383,36.2554147,160.36,160.32,1.568]
[1746720676687,36.2554147,160.36,160.31,56.23757404]
[1746720676899,36.2554147,160.38,160.33,36.2554147]
[1746720677402,6.23454188,160.4,160.32,26.0]
[1746720677403,36.2554147,160.36,160.32,26.0]
[1746720677605,42.48995658,160.4,160.31,6.23757404]
[1746720677606,136.4,160.39,160.31,6.23757404]
[1746720677899,36.2554147,160.36,160.31,42.49298874]
[1746720678608,36.2554147,160.35,160.3,68.49360922]
[1746720678779,36.2554147,160.36,160.31,36.2554147]
[1746720679406,36.2554147,160.36,160.31,86.39757627]
[1746720680288,36.2554147,160.35,160.31,86.2554147]
[1746720680804,36.2554147,160.34,160.3,26.0]
[1746720681096,36.2554147,160.32,160.3,26.0]
[1746720681397,136.4,160.33,160.28,36.2554147]
[1746720681606,172.6554147,160.33,160.28,36.2554147]
[1746720681782,172.6554147,160.33,160.27,76.0]
[1746720681981,136.4,160.33,160.29,36.2554147]
[1746720682193,172.6554147,160.33,160.28,36.2554147]
[1746720682510,178.89268148,160.33,160.28,42.49446899]
[1746720683081,178.89268148,160.33,160.27,62.2554147]
[1746720683082,36.2554147,160.32,160.27,62.2554147]
[1746720683381,36.2554147,160.3,160.25,36.2554147]
[1746720683894,36.2554147,160.3,160.25,62.2554147]
[1746720684392,36.2554147,160.29,160.24,37.7639147]
[1746720684594,36.2554147,160.3,160.25,36.2554147]
[1746720684904,136.4,160.29,160.25,36.2554147]
[1746720685385,6.23677817,160.34,160.28,62.2554147]
[1746720685583,136.4,160.35,160.28,62.2554147]
[1746720685584,136.4,160.35,160.31,36.2554147]
[1746720686092,136.4,160.35,160.29,0.14216157]
[1746720686285,136.4,160.35,160.31,36.2554147]
[1746720686495,172.6554147,160.35,160.31,6.23787615]
[1746720686886,136.4,160.35,160.31,42.49329085]
[1746720687083,136.4,160.35,160.32,36.2554147]
[1746720687283,172.6554147,160.35,160.3,36.2554147]
[1746720687487,36.2554147,160.33,160.29,26.0]
[1746720687693,142.63653918,160.35,160.29,26.0]
[1746720687694,36.2554147,160.32,160.29,26.0]
[1746720687883,36.2554147,160.3,160.24,8.0275]
[1746720688099,36.2554147,160.29,160.24,70.2829147]
[1746720688417,36.2554147,160.29,160.24,7.74904559]
[1746720688579,36.2554147,160.28,160.24,27.5085]
[1746720688780,36.2554147,160.28,160.24,33.74913615]
[1746720689006,36.2554147,160.28,160.24,26.0]
[1746720689311,36.2554147,160.3,160.25,36.2554147]
[1746720689814,178.8933434,160.31,160.26,36.2554147]
[1746720690019,36.2554147,160.3,160.25,36.2554147]
[1746720690387,36.2554147,160.3,160.26,6.23986022]
[1746720690695,172.6554147,160.31,160.26,42.49527492]
[1746720691110,36.2554147,160.3,160.26,6.23986022]
[1746720691313,178.8935388,160.31,160.26,42.49527492]
[1746720691789,36.2554147,160.3,160.25,92.49555929]
[1746720692496,136.4,160.35,160.28,62.2554147]
[1746720692796,172.6554147,160.34,160.29,36.2554147]
[1746720693106,36.2554147,160.33,160.28,62.2554147]
[1746720693616,36.2554147,160.3,160.26,26.0]
[1746720693785,6.23749074,160.33,160.21,50.0]
[1746720693786,23.93090788,160.27,160.21,50.0]
[1746720693989,23.93090788,160.26,160.21,50.0]
[1746720694200,136.4,160.29,160.21,106.17261749]
[1746720694411,23.93090788,160.27,160.22,23.93090788]
[1746720694833,23.93090788,160.27,160.21,56.24170961]
[1746720694991,23.93090788,160.27,160.22,23.93090788]
[1746720695190,23.93090788,160.27,160.22,30.17220758]
[1746720695413,23.93090788,160.27,160.22,6.2412997]
[1746720695615,23.93090788,160.27,160.22,30.17220758]
[1746720695808,6.2390816,160.28,160.22,30.17220758]
[1746720696015,23.93090788,160.28,160.23,23.93090788]
[1746720696209,23.93090788,160.27,160.22,23.93090788]
[1746720696510,23.74727768,160.26,160.21,106.17270869]
[1746720697518,142.63882845,160.29,160.22,23.93090788]
[1746720697519,23.93090788,160.27,160.22,23.93090788]
[1746720697710,30.17043565,160.27,160.21,82.24180081]
[1746720697903,30.17043565,160.27,160.22,23.93090788]
[1746720698599,6.23911347,160.28,160.22,23.93090788]
[1746720698810,23.93090788,160.26,160.21,82.24180081]
[1746720699111,23.93090788,160.25,160.21,76.0]
[1746720699317,23.93090788,160.24,160.2,51.6601]
[1746720699515,23.93090788,160.24,160.2,57.90226759]
[1746720699813,6.24030284,160.25,160.21,23.93090788]
[1746720700029,30.17088725,160.26,160.21,23.93090788]
[1746720700192,23.93090788,160.26,160.2,57.90226759]
[1746720700395,23.93090788,160.26,160.21,23.93090788]
[1746720700591,136.4,160.27,160.23,23.93090788]
[1746720700827,166.5705346,160.27,160.21,0.14216157]
[1746720701016,23.93090788,160.26,160.22,23.93090788]
[1746720701311,166.5705346,160.27,160.22,23.93090788]
[1746720701516,136.4,160.27,160.22,23.93090788]
[1746720701718,136.4,160.27,160.23,23.93090788]
[1746720701935,136.4,160.27,160.26,49.93090788]
[1746720702096,142.63804629,160.31,160.26,49.93090788]
[1746720702296,23.48,160.32,160.26,49.93090788]
[1746720702297,136.4,160.3,160.26,49.93090788]
[1746720703528,136.4,160.3,160.26,30.17066647]
[1746720703908,160.33090788,160.3,160.25,56.17104232]
[1746720704318,136.4,160.3,160.26,23.93090788]
[1746720704522,160.33090788,160.3,160.25,32.24013444]
[1746720704716,23.93090788,160.28,160.24,6.38264866]
[1746720704915,23.93090788,160.28,160.24,80.31355654]
[1746720705124,23.93090788,160.28,160.24,30.31355654]
[1746720705430,23.93090788,160.27,160.22,56.24134053]
[1746720705606,23.93090788,160.26,160.22,82.24134053]
[1746720705810,23.93090788,160.26,160.22,32.24134053]
[1746720706008,23.93090788,160.25,160.2,51.6601]
[1746720706313,23.93090788,160.25,160.2,101.59100788]
[1746720706715,23.93090788,160.25,160.2,75.59100788]
[1746720706942,23.93090788,160.26,160.21,23.93090788]
[1746720707232,23.93090788,160.26,160.21,30.17261397]
[1746720708635,6.23966395,160.27,160.22,23.93090788]
[1746720708809,136.4,160.26,160.22,23.93090788]
[1746720709234,160.33090788,160.26,160.21,30.17261397]
[1746720709435,160.33090788,160.26,160.21,6.24170609]
[1746720709436,23.93090788,160.25,160.21,6.24170609]
[1746720710434,142.63987499,160.26,160.21,6.24170609]
[1746720710622,166.57078287,160.26,160.21,30.17261397]
[1746720711023,23.93090788,160.25,160.2,81.83310122]
[1746720711223,142.63987499,160.26,160.21,23.93090788]
[1746720711539,166.57078287,160.26,160.21,23.93090788]
[1746720711840,23.93090788,160.25,160.2,81.83310122]
[1746720712443,136.4,160.26,160.23,23.93090788]
[1746720712634,136.4,160.26,160.22,23.93090788]
[1746720712840,160.33090788,160.26,160.21,24.07306945]
[1746720713337,136.4,160.26,160.22,23.93090788]
[1746720713921,160.33090788,160.26,160.22,23.93090788]
[1746720714123,160.33090788,160.26,160.22,30.17222233]
[1746720714621,136.4,160.26,160.22,30.17222233]
[1746720716961,160.33090788,160.26,160.22,30.17222233]
[1746720717125,23.93090788,160.25,160.2,57.90192066]
[1746720717530,142.63994878,160.26,160.2,57.90192066]
[1746720717531,142.63994878,160.26,160.21,23.93090788]
[1746720717840,166.57085666,160.26,160.21,23.93090788]
[1746720718046,166.57085666,160.26,160.2,57.90192066]
[1746720718047,23.93090788,160.25,160.2,57.90192066]
[1746720718215,30.17126217,160.25,160.2,81.83282854]
[1746720718420,166.57084919,160.26,160.21,23.93090788]
[1746720718621,166.57084919,160.26,160.2,57.90192066]
[1746720718842,23.93090788,160.25,160.21,23.93090788]
[1746720719349,30.17142286,160.25,160.21,23.93090788]
[1746720719560,30.17142286,160.25,160.2,57.90192066]
[1746720719848,23.93090788,160.25,160.21,23.93090788]
[1746720720450,23.93090788,160.25,160.2,81.83282854]
[1746720720657,166.57092564,160.26,160.2,57.90192066]
[1746720720852,23.93090788,160.24,160.19,32.24249224]
[1746720721227,160.33090788,160.23,160.19,26.0]
[1746720721444,136.4,160.23,160.19,32.24254811]
[1746720721960,136.4,160.23,160.19,26.0]
[1746720722146,166.57202181,160.23,160.19,26.0]
[1746720722350,136.4,160.23,160.19,56.17346534]
[1746720722546,136.4,160.23,160.2,23.93090788]
[1746720722755,136.4,160.23,160.22,23.93090788]
[1746720723056,136.4,160.23,160.21,50.0]
[1746720723236,136.4,160.23,160.22,23.93090788]
[1746720723439,136.4,160.23,160.22,30.17232593]
[1746720723640,136.4,160.31,160.22,56.3144875]
[1746720723956,23.93090788,160.29,160.24,23.93090788]
[1746720724536,136.4,160.3,160.25,23.93090788]
[1746720724735,136.4,160.3,160.28,23.93090788]
[1746720724951,136.4,160.3,160.25,51.5654]
[1746720725260,136.4,160.3,160.26,23.93090788]
[1746720725439,23.93090788,160.27,160.23,26.0]
[1746720725761,6.23869237,160.29,160.2,23.93090788]
[1746720725762,23.93090788,160.25,160.2,23.93090788]
[1746720725942,160.33090788,160.24,160.19,23.93090788]
[1746720726149,160.33090788,160.24,160.19,49.93090788]
[1746720726649,160.33090788,160.24,160.19,23.93090788]
[1746720726864,136.4,160.23,160.19,23.93090788]
[1746720727646,142.64135745,160.23,160.19,23.93090788]
[1746720727852,142.64135745,160.23,160.18,9.54135753]
[1746720727853,160.33090788,160.22,160.18,9.54135753]
[1746720728045,160.33090788,160.21,160.18,9.54135753]
[1746720728241,136.4,160.21,160.18,9.54135753]
[1746720728645,136.4,160.21,160.19,23.93090788]
[1746720728847,136.4,160.25,160.2,23.93090788]
[1746720729038,136.4,160.25,160.24,23.93090788]
[1746720729240,136.4,160.29,160.24,73.93090788]
[1746720729446,23.48,160.32,160.28,23.93090788]
[1746720729651,29.71764527,160.32,160.27,6.23938388]
[1746720729865,53.64855315,160.32,160.27,23.93090788]
[1746720730158,23.48,160.32,160.28,23.93090788]
[1746720730542,47.41090788,160.32,160.27,23.93090788]
[1746720730852,23.48,160.32,160.28,23.93090788]
[1746720731057,233.78,160.37,160.31,23.93090788]
[1746720731254,6.23596906,160.36,160.32,23.93090788]
[1746720731466,30.16687694,160.36,160.29,33.86971299]
[1746720731638,30.16687694,160.36,160.31,23.93090788]
[1746720732559,23.26,160.38,160.34,23.93090788]
[1746720732770,23.93090788,160.37,160.32,26.0]
[1746720732953,23.93090788,160.34,160.29,1.6313]
[1746720733146,23.93090788,160.31,160.28,26.0]
[1746720733347,18.64964886,160.37,160.26,80.17049853]
[1746720733660,46.67968891,160.38,160.28,73.93090788]
[1746720733876,23.93090788,160.31,160.27,26.0]
[1746720734238,23.93090788,160.31,160.26,80.17049853]
[1746720734239,23.93090788,160.3,160.25,37.96235152]
[1746720734557,23.93090788,160.3,160.25,63.96235152]
[1746720735066,23.93090788,160.32,160.26,23.93090788]
[1746720735246,23.93090788,160.35,160.3,23.93090788]
[1746720735451,136.4,160.36,160.33,23.93090788]
[1746720735657,23.26,160.38,160.34,23.93090788]
[1746720735971,23.93090788,160.42,160.37,23.93090788]
[1746720736346,23.93090788,160.41,160.36,23.93090788]
[1746720736749,23.93090788,160.38,160.33,25.45820788]
[1746720736950,18.64964886,160.43,160.33,25.45820788]
[1746720736951,18.64964886,160.43,160.33,7.7643871]
[1746720737153,18.64964886,160.43,160.34,23.93090788]
[1746720737349,29.49322546,160.44,160.36,23.93090788]
[1746720737635,23.93090788,160.43,160.38,23.93090788]
[1746720738042,23.26,160.44,160.4,23.93090788]
[1746720738248,23.26,160.44,160.41,26.0]
[1746720738460,23.93090788,160.44,160.41,26.0]
[1746720739255,233.82,160.47,160.41,56.16476147]
[1746720739456,23.93090788,160.46,160.41,56.16476147]
[1746720739654,29.49056411,160.5,160.42,23.93090788]
[1746720739854,23.26,160.5,160.44,23.93090788]
[1746720740144,47.19090788,160.5,160.45,23.93090788]
[1746720740342,23.93090788,160.49,160.44,26.0]
[1746720740563,23.26,160.5,160.44,26.0]
[1746720740564,23.26,160.5,160.44,49.93090788]
[1746720740763,23.26,160.5,160.45,30.16337905]
[1746720741063,23.93090788,160.48,160.44,82.23276165]
[1746720741238,23.93090788,160.49,160.44,106.16366953]
[1746720741440,29.49058987,160.5,160.44,106.16366953]
[1746720741641,47.19090788,160.5,160.44,106.16366953]
[1746720742051,23.93090788,160.49,160.44,106.16366953]
[1746720742459,23.26,160.5,160.45,23.93090788]
[1746720742668,6.22938238,160.53,160.47,6.23169439]
[1746720742852,23.93090788,160.51,160.47,6.23169439]
[1746720743166,23.93090788,160.51,160.46,80.16287583]
[1746720743469,23.93090788,160.48,160.44,76.0]
[1746720743642,23.93090788,160.47,160.43,6.23324814]
[1746720743842,23.93090788,160.47,160.44,26.0]
[1746720744244,23.93090788,160.46,160.42,51.641]
[1746720744575,23.93090788,160.44,160.4,56.234363]
[1746720744760,23.93090788,160.44,160.4,82.234363]
[1746720745066,6.23052959,160.5,160.41,23.93090788]
[1746720745271,23.93090788,160.46,160.41,23.93090788]
[1746720745866,23.93090788,160.46,160.42,50.0]
[1746720746066,23.93090788,160.49,160.44,73.93090788]
[1746720746577,23.93090788,160.5,160.45,23.93090788]
[1746720746869,23.93090788,160.49,160.45,6.23247117]
[1746720747062,23.93090788,160.48,160.44,56.2327827]
[1746720747446,142.6302629,160.51,160.5,5.74763387]
[1746720747658,30.16117078,160.51,160.5,5.74763387]
[1746720747855,23.93090788,160.51,160.5,5.74763387]
[1746720748059,6.2289772,160.54,160.5,5.74763387]
[1746720748269,23.93090788,160.51,160.5,5.74763387]
[1746720748857,6.22858922,160.55,160.5,5.74763387]
[1746720749062,23.93090788,160.51,160.5,5.74763387]
[1746720749549,72.93090788,160.56,160.5,11.97816346]
[1746720749550,53.15912104,160.56,160.5,11.97816346]
[1746720749764,23.93090788,160.53,160.5,11.97816346]
[1746720750962,23.93090788,160.53,160.5,5.74763387]
[1746720751272,23.93090788,160.51,160.5,5.74763387]
[1746720752071,6.22907846,160.54,160.5,5.74763387]
[1746720752272,23.93090788,160.51,160.5,5.74763387]
[1746720752861,6.22907846,160.54,160.5,5.74763387]
[1746720753065,23.93090788,160.53,160.5,5.74763387]
[1746720753371,23.93090788,160.54,160.5,11.97813104]
[1746720753676,23.93090788,160.54,160.5,37.97813104]
[1746720753879,23.93090788,160.54,160.5,31.74763387]
[1746720754684,136.4,160.56,160.53,49.93090788]
[1746720754879,136.4,160.56,160.54,23.93090788]
[1746720755555,136.4,160.56,160.53,56.16001215]
[1746720755772,136.4,160.56,160.54,23.93090788]
[1746720756691,136.4,160.56,160.55,25.55060788]
[1746720757005,136.4,160.56,160.55,31.7791971]
[1746720757193,136.4,160.56,160.55,25.55060788]
[1746720757782,136.4,160.56,160.53,76.0]
[1746720757981,160.33090788,160.56,160.52,6.2297533]
[1746720758286,160.33090788,160.56,160.51,57.74971177]
[1746720758598,23.93090788,160.54,160.5,5.74763387]
[1746720758884,23.93090788,160.52,160.5,5.74763387]
[1746720759178,23.93090788,160.51,160.5,5.74763387]
[1746720759365,6.22945947,160.53,160.5,5.74763387]
[1746720759550,23.93090788,160.51,160.5,5.74763387]
[1746720761381,30.1610493,160.51,160.5,5.74763387]
[1746720762081,23.93090788,160.51,160.5,5.74763387]
[1746720762278,46.91090788,160.56,160.5,5.74763387]
[1746720762491,23.93090788,160.54,160.5,5.74763387]
[1746720762672,23.93090788,160.55,160.5,35.90906943]
[1746720762992,53.13917315,160.56,160.52,23.93090788]
[1746720763162,53.13917315,160.56,160.51,30.16099919]
[1746720763559,46.91090788,160.56,160.51,30.16099919]
[1746720763756,53.13912244,160.56,160.51,30.16099919]
[1746720763960,23.93090788,160.55,160.51,6.23009131]
[1746720764164,22.98,160.56,160.51,30.16099919]
[1746720764386,22.98,160.56,160.52,1.6056]
[1746720764583,22.98,160.56,160.52,25.53650788]
[1746720764963,46.91090788,160.56,160.52,25.53650788]
[1746720765183,22.98,160.56,160.52,31.7659918]
[1746720765484,23.93090788,160.55,160.52,1.6056]
[1746720766178,23.93090788,160.55,160.51,32.23005233]
[1746720766372,136.4,160.54,160.51,32.23005233]
[1746720767379,136.4,160.54,160.53,23.93090788]
[1746720767772,136.4,160.54,160.52,23.93090788]
[1746720767978,136.4,160.54,160.51,56.16096021]
[1746720769270,136.4,160.54,160.51,26.0]
[1746720769468,136.4,160.54,160.51,32.23006572]
[1746720771477,23.93090788,160.53,160.51,26.0]
[1746720771682,23.93090788,160.53,160.5,5.74763387]
[1746720771878,136.4,160.54,160.5,5.74763387]
[1746720772074,23.93090788,160.53,160.5,5.74763387]
[1746720772277,23.93090788,160.53,160.5,11.97807524]
[1746720773773,23.93090788,160.51,160.5,5.74763387]
[1746720774675,42.58055674,160.51,160.5,5.74763387]
[1746720775583,48.81069816,160.51,160.5,5.74763387]
[1746720780494,23.93090788,160.51,160.5,5.74763387]
[1746720782077,6.22820129,160.56,160.5,29.67854175]
[1746720782288,233.42,160.59,160.52,23.93090788]
[1746720782506,30.15809775,160.59,160.54,23.93090788]
[1746720782675,46.65090788,160.58,160.53,23.93090788]
[1746720782880,23.93090788,160.56,160.51,23.93090788]
[1746720783570,23.93090788,160.57,160.52,23.93090788]
[1746720783773,6.6423,160.63,160.5,18.25905841]
[1746720783774,6.22548714,160.63,160.54,23.93090788]
[1746720783978,23.93090788,160.56,160.51,80.1610493]
[1746720784302,23.93090788,160.56,160.5,12.02853387]
[1746720784303,23.93090788,160.54,160.5,12.02853387]
[1746720784604,18.64964886,160.59,160.5,35.95944175]
[1746720784605,23.93090788,160.55,160.5,35.95944175]
[1746720784802,23.93090788,160.56,160.51,23.93090788]
[1746720785003,32.0831,160.62,160.53,23.93090788]
[1746720785189,23.93090788,160.59,160.54,23.93090788]
[1746720785388,23.93090788,160.58,160.53,23.93090788]
[1746720785901,23.93090788,160.59,160.54,23.93090788]
[1746720786303,6.22587473,160.62,160.55,23.93090788]
[1746720786484,23.93090788,160.6,160.53,6.22936522]
[1746720786807,23.93090788,160.6,160.55,23.93090788]
[1746720787190,136.4,160.61,160.56,1.6449]
[1746720787391,23.93090788,160.57,160.52,107.6797169]
[1746720787592,23.93090788,160.55,160.52,27.5192]
[1746720788306,23.93090788,160.54,160.52,1.5192]
[1746720788512,23.93090788,160.53,160.5,5.74763387]
[1746720788814,23.93090788,160.51,160.5,5.74763387]
[1746720789784,30.1610493,160.51,160.5,5.74763387]
[1746720794311,24.87823808,160.55,160.5,5.74763387]
[1746720794498,6.22858922,160.55,160.51,23.93090788]
[1746720794808,23.93090788,160.54,160.5,35.90903166]
[1746720795118,136.4,160.54,160.53,23.93090788]
[1746720795322,159.12,160.58,160.53,23.93090788]
[1746720795525,136.4,160.58,160.57,23.93090788]
[1746720795691,136.4,160.62,160.57,23.93090788]
[1746720795897,166.55648232,160.63,160.58,23.93090788]
[1746720796206,23.93090788,160.6,160.55,49.93090788]
[1746720796408,142.62557444,160.63,160.55,26.0]
[1746720796625,23.93090788,160.59,160.55,26.0]
[1746720796829,23.93090788,160.59,160.56,1.55780019]
[1746720797501,6.22641899,160.61,160.56,1.55780019]
[1746720797700,23.93090788,160.6,160.56,1.55780019]
[1746720797895,23.93090788,160.6,160.56,7.78591065]
[1746720798097,30.15689204,160.62,160.57,23.93090788]
[1746720798428,23.93090788,160.62,160.57,23.93090788]
[1746720798606,23.93090788,160.61,160.56,31.71681853]
[1746720798798,23.93090788,160.57,160.56,1.55780019]
[1746720798999,23.93090788,160.57,160.54,26.0]
[1746720799199,23.93090788,160.55,160.52,1.6124]
[1746720799615,23.93090788,160.54,160.5,5.74763387]
[1746720799808,23.93090788,160.54,160.52,1.55823655]
[1746720800012,136.4,160.56,160.53,49.93090788]
[1746720800410,23.93090788,160.54,160.52,1.55823655]
[1746720800631,23.93090788,160.53,160.5,5.74763387]
[1746720800825,23.93090788,160.51,160.5,5.74763387]
[1746720801619,30.1610493,160.51,160.5,5.74763387]
[1746720803022,18.64964886,160.5,160.41,1.6141]
[1746720803222,18.64964886,160.5,160.41,25.54500788]
[1746720803223,6.23193301,160.47,160.41,25.54500788]
[1746720803531,23.93090788,160.43,160.41,1.6141]
[1746720803702,23.93090788,160.43,160.38,23.93090788]
[1746720803905,36.23435349,160.42,160.38,36.23435349]
[1746720804130,18.64964886,160.46,160.38,36.23435349]
[1746720804306,36.23435349,160.43,160.38,36.23435349]
[1746720804502,21.811169,160.47,160.39,36.23435349]
[1746720804503,36.23435349,160.44,160.39,36.23435349]
[1746720804706,36.23435349,160.46,160.41,36.23435349]
[1746720804909,36.23435349,160.48,160.43,36.23435349]
[1746720805123,22.48,160.49,160.43,36.23435349]
[1746720805333,233.38,160.55,160.46,36.23435349]
[1746720805334,6.2289772,160.54,160.46,36.23435349]
[1746720805629,6.2289772,160.54,160.47,36.23435349]
[1746720805630,36.23435349,160.52,160.47,36.23435349]
[1746720806423,36.23435349,160.48,160.45,27.5392]
[1746720806623,36.23435349,160.46,160.41,7.6768]
[1746720806832,36.23435349,160.47,160.42,36.23435349]
[1746720807135,136.4,160.52,160.44,62.23435349]
[1746720807136,36.23435349,160.49,160.44,62.23435349]
[1746720807632,42.46527183,160.49,160.44,62.23435349]
[1746720807823,36.23435349,160.48,160.44,26.0]
[1746720808019,36.23435349,160.47,160.42,62.23435349]
[1746720809140,36.23435349,160.47,160.42,68.46773971]
[1746720809634,170.62442121,160.52,160.46,62.23435349]
[1746720809635,136.4,160.51,160.46,62.23435349]
[1746720809939,36.23435349,160.5,160.46,26.0]
[1746720810511,172.63435349,160.51,160.46,62.23435349]
[1746720810940,178.86468905,160.51,160.46,62.23435349]
[1746720811235,36.23435349,160.47,160.43,26.0]
[1746720811412,36.23435349,160.47,160.42,36.23435349]
[1746720811615,36.23435349,160.48,160.43,36.23435349]
[1746720811811,36.23435349,160.48,160.43,62.23435349]
[1746720812317,36.23435349,160.49,160.44,36.23435349]
[1746720812519,136.4,160.5,160.44,36.23435349]
[1746720812742,36.23435349,160.49,160.44,36.23435349]
[1746720812940,136.4,160.5,160.46,62.23435349]
[1746720813234,136.4,160.54,160.49,36.23435349]
[1746720813442,136.4,160.54,160.5,62.23435349]
[1746720813820,136.4,160.54,160.5,26.0]
[1746720814855,136.4,160.54,160.5,63.86705349]
[1746720815150,172.63435349,160.54,160.5,33.86313991]
[1746720815315,136.4,160.54,160.5,33.86313991]
[1746720815520,172.63435349,160.54,160.5,33.86313991]
[1746720815944,136.4,160.54,160.5,70.0974934]
[1746720816350,22.48,160.55,160.52,36.23435349]
[1746720816524,36.23435349,160.57,160.52,36.23435349]
[1746720816915,136.4,160.58,160.54,6.2289772]
[1746720817318,22.48,160.61,160.56,36.23435349]
[1746720817523,58.71435349,160.61,160.56,36.23435349]
[1746720818242,22.48,160.61,160.56,36.23435349]
[1746720818539,36.23435349,160.6,160.56,36.23435349]
[1746720818730,36.23435349,160.6,160.56,6.22820129]
[1746720818921,58.71435349,160.61,160.56,42.46255478]
[1746720819123,22.48,160.61,160.56,42.46255478]
[1746720819322,36.23435349,160.61,160.56,42.46255478]
[1746720819726,136.4,160.64,160.58,36.23435349]
[1746720819930,36.23435349,160.63,160.58,36.23435349]
[1746720820528,136.4,160.64,160.59,86.23435349]
[1746720820732,136.4,160.64,160.6,6.22665006]
[1746720821029,36.23435349,160.64,160.59,82.22690815]
[1746720821242,36.23435349,160.62,160.59,32.22690815]
[1746720821437,36.23435349,160.64,160.59,118.46126164]
[1746720821630,36.23435349,160.63,160.59,76.0]
[1746720821843,36.23435349,160.63,160.59,26.0]
[1746720822030,6.22442981,160.66,160.59,68.46134403]
[1746720822352,36.23435349,160.62,160.59,26.0]
[1746720822650,36.23435349,160.61,160.58,27.5596]
[1746720823028,36.23435349,160.62,160.58,27.5596]
[1746720823228,36.23435349,160.61,160.58,27.5596]
[1746720823649,36.23435349,160.6,160.58,27.5596]
[1746720823851,36.23435349,160.59,160.54,7.6848]
[1746720824152,136.4,160.62,160.55,26.0]
[1746720824153,36.23435349,160.58,160.55,26.0]
[1746720824567,36.23435349,160.59,160.55,26.0]
[1746720824742,136.4,160.62,160.56,86.23435349]
[1746720824934,36.23435349,160.59,160.55,62.23435349]
[1746720825133,36.23435349,160.57,160.56,26.0]
[1746720825649,142.62596153,160.62,160.56,26.0]
[1746720825836,136.4,160.62,160.57,23.84047478]
[1746720826043,136.4,160.62,160.58,23.84047478]
[1746720826444,135.9,160.62,160.58,23.84047478]
[1746720826639,135.9,160.65,160.6,23.84047478]
[1746720826949,23.84047478,160.63,160.59,23.84047478]
[1746720827140,23.84047478,160.62,160.59,6.22676764]
[1746720827342,23.84047478,160.63,160.59,30.06724242]
[1746720827755,36.1384719,160.63,160.59,6.22676764]
[1746720827957,36.1384719,160.63,160.58,36.1384719]
[1746720828150,36.1384719,160.64,160.59,36.1384719]
[1746720828452,36.1384719,160.64,160.59,112.1384719]
[1746720829041,36.1384719,160.64,160.6,42.36512196]
[1746720829233,135.9,160.65,160.61,36.1384719]
[1746720829434,135.9,160.65,160.61,86.1384719]
[1746720829650,135.9,160.65,160.63,36.1384719]
[1746720830057,135.9,160.65,160.62,26.0]
[1746720830854,135.9,160.65,160.62,62.1384719]
[1746720831057,135.9,160.65,160.62,68.36407582]
[1746720831358,135.9,160.65,160.62,32.22560392]
[1746720831544,135.9,160.65,160.62,68.36407582]
[1746720832555,22.48,160.67,160.62,68.36407582]
[1746720832752,36.1384719,160.68,160.63,36.1384719]
[1746720832963,36.1384719,160.66,160.62,50.03877582]
[1746720833137,36.1384719,160.66,160.63,26.0]
[1746720833836,36.1384719,160.66,160.62,43.98077582]
[1746720833837,36.1384719,160.66,160.62,1.6167]
[1746720834040,135.9,160.65,160.59,6.22688722]
[1746720834249,6.22418424,160.67,160.59,6.22688722]
[1746720834250,36.1384719,160.62,160.59,6.22688722]
[1746720834440,36.1384719,160.63,160.59,32.22688722]
[1746720835140,135.9,160.64,160.59,32.22688722]
[1746720835345,36.1384719,160.63,160.59,32.22688722]
[1746720835556,36.1384719,160.62,160.59,26.0]
[1746720835959,36.1384719,160.61,160.59,26.0]
[1746720836443,36.1384719,160.61,160.58,7.75938284]
[1746720836640,36.1384719,160.62,160.58,33.75938284]
[1746720836843,36.1384719,160.61,160.58,33.75938284]
[1746720837242,36.1384719,160.62,160.58,33.75938284]
[1746720838057,135.9,160.64,160.58,69.89785474]
[1746720838264,36.1384719,160.63,160.58,69.89785474]
[1746720838464,135.9,160.64,160.58,69.89785474]
[1746720838641,36.1384719,160.63,160.58,69.89785474]
[1746720839261,172.0384719,160.64,160.59,36.1384719]
[1746720839456,36.1384719,160.62,160.58,69.89785474]
[1746720840244,36.1384719,160.62,160.58,33.75938284]
[1746720840547,135.9,160.64,160.58,69.89785474]
[1746720840759,36.1384719,160.62,160.58,33.75938284]